bitfinex-derivatives/quotes_ETHF0:USTF0_20250824
["timestamp","ask_amount","ask_price","bid_price","bid_amount"]
[1756073387781,0.762,4784.1,4783.2,3.2078]
[1756073387985,1.0899,4783.9,4783.6,20.556]
[1756073388278,0.388,4783.7,4783.6,20.556]
[1756073388883,3.5818,4784.3,4783.6,20.556]
[1756073389074,1.00174432,4784.2,4784.0,0.41809]
[1756073389283,0.61374432,4784.1,4784.0,0.41809]
[1756073389480,3.2078,4784.9,4784.7,0.41803]
[1756073389779,1.00193281,4784.8,4784.7,0.41803]
[1756073389981,0.61393281,4784.8,4784.7,24.35099032]
[1756073390176,0.374,4785.9,4785.6,0.41795]
[1756073390486,0.6087104,4785.8,4785.7,20.55]
[1756073391377,0.9967104,4785.8,4785.7,20.55]
[1756073391578,0.6087104,4785.8,4785.7,20.55]
[1756073392292,0.9967104,4785.8,4785.7,20.546]
[1756073392783,0.9967104,4785.8,4785.2,3.2078]
[1756073392988,1.0899,4785.8,4785.7,20.546]
[1756073393188,1.69830402,4785.8,4785.7,20.546]
[1756073393487,0.3279,4785.4,4782.7,1.04551]
[1756073393784,0.388,4784.8,4783.8,3.6259]
[1756073393985,0.388,4784.4,4783.3,5.9408286]
[1756073394187,0.388,4784.2,4783.4,20.54]
[1756073394390,0.60840402,4784.1,4783.5,20.539]
[1756073394585,0.99640402,4784.0,4782.8,34.36828]
[1756073394784,1.48250487,4786.0,4783.7,0.41811]
[1756073394785,0.60840402,4783.9,4783.7,0.41811]
[1756073394983,0.388,4784.5,4783.8,20.539]
[1756073395184,0.99591599,4784.4,4784.0,3.62589]
[1756073395379,0.60791599,4784.3,4783.4,3.2078]
[1756073395585,0.60791599,4784.2,4783.5,20.538]
[1756073395779,0.60791599,4784.1,4783.8,0.4181]
[1756073395985,0.374,4784.6,4784.0,0.41809]
[1756073396190,0.388,4784.4,4784.0,0.41809]
[1756073396485,0.60799119,4784.3,4784.1,0.41808]
[1756073396682,0.3279,4785.1,4784.2,20.538]
[1756073396990,0.388,4784.7,4783.9,3.2078]
[1756073397184,0.60840214,4784.6,4784.0,20.537]
[1756073397385,0.762,4784.4,4784.0,20.537]
[1756073397689,0.60840214,4784.3,4784.1,0.41808]
[1756073397990,0.60840214,4784.2,4784.1,0.41808]
[1756073398484,0.60840214,4784.2,4784.1,20.95308]
[1756073398690,0.388,4784.9,4784.8,0.41802]
[1756073398890,0.9956872,4784.9,4784.8,20.95302]
[1756073399085,0.6076872,4784.9,4784.8,20.95302]
[1756073399686,0.3545,4784.8,4784.7,0.41802]
[1756073399886,0.9797872,4784.8,4784.6,0.41803]
[1756073400082,0.6076872,4784.7,4784.6,0.41803]
[1756073400285,0.6076872,4784.7,4784.6,51.05503]
[1756073400486,0.45159045,4784.7,4784.6,53.78953785]
[1756073400693,0.3545,4785.8,4785.7,0.41794]
[1756073400882,0.3545,4785.8,4785.7,20.94994]
[1756073401383,0.3545,4785.8,4785.7,20.532]
[1756073401588,1.0583,4786.4,4785.4,3.2078]
[1756073401894,0.7266,4786.2,4785.5,20.94895]
[1756073402189,1.0583,4785.9,4785.6,20.531]
[1756073402384,0.7266,4786.4,4785.1,3.2078]
[1756073402695,1.0583,4785.8,4785.2,20.531]
[1756073402993,1.0583,4785.5,4785.2,20.531]
[1756073403195,1.0583,4785.4,4785.2,20.531]
[1756073403389,1.0583,4785.4,4784.6,30.104]
[1756073403390,0.3545,4785.2,4784.6,30.104]
[1756073403592,0.3721,4785.0,4784.7,20.94602]
[1756073403891,0.3317,4785.1,4784.7,20.94602]
[1756073403892,0.3545,4785.5,4785.3,0.41797]
[1756073404086,0.3545,4785.5,4785.4,23.7358]
[1756073404589,3.2078,4786.5,4784.7,1.04508]
[1756073404590,3.2078,4786.5,4785.1,0.41799]
[1756073404788,3.2078,4785.9,4785.2,20.527]
[1756073404988,0.3545,4785.5,4785.4,0.41796]
[1756073405288,0.3545,4785.5,4785.4,20.526]
[1756073406286,0.7266,4785.5,4785.4,20.526]
[1756073406588,4.0,4785.5,4785.0,20.524]
[1756073406892,3.2078,4785.3,4785.0,20.524]
[1756073407296,1.0583,4785.2,4785.0,20.524]
[1756073407489,1.0583,4785.1,4784.6,30.104]
[1756073407694,3.2078,4784.8,4784.7,20.523]
[1756073407895,3.5395,4784.8,4784.7,20.523]
[1756073408296,3.894,4784.8,4784.7,20.523]
[1756073408496,1.0583,4784.8,4784.7,20.523]
[1756073408893,4.2661,4784.8,4784.7,20.522]
[1756073409097,1.0583,4784.8,4784.7,20.522]
[1756073409693,3.2078,4785.4,4784.6,30.104]
[1756073409900,3.2078,4785.4,4784.7,20.521]
[1756073410199,3.2078,4785.4,4784.6,30.104]
[1756073410490,3.2078,4784.9,4784.4,20.52]
[1756073410696,3.2078,4784.9,4783.8,3.2078]
[1756073410895,3.2078,4784.9,4783.9,20.52]
[1756073411598,1.0583,4784.3,4783.9,20.52]
[1756073411797,1.0583,4784.1,4783.9,20.52]
[1756073412099,1.0583,4784.1,4782.5,1.04555]
[1756073412100,1.0583,4784.3,4783.8,20.519]
[1756073412294,1.0583,4784.3,4783.0,0.5058]
[1756073412497,1.0583,4783.8,4783.1,20.93717]
[1756073412694,0.3721,4783.5,4783.0,0.3063]
[1756073412898,1.0583,4783.3,4783.1,20.518]
[1756073413196,1.0583,4783.1,4783.0,20.518]
[1756073413395,0.89706564,4783.1,4783.0,20.518]
[1756073413794,0.89706564,4783.1,4782.9,30.099]
[1756073414001,1.29196564,4783.0,4782.9,30.099]
[1756073414192,1.62366564,4783.0,4782.9,30.099]
[1756073414397,1.62366564,4783.0,4782.9,50.616]
[1756073414699,1.62366564,4783.0,4782.9,30.099]
[1756073414892,1.62366564,4783.0,4782.9,50.616]
[1756073415089,1.62366564,4783.0,4782.9,30.099]
[1756073415293,0.6862,4782.8,4782.3,3.5141]
[1756073415504,1.0583,4782.6,4782.4,20.518]
[1756073415691,0.56314062,4782.5,4782.4,20.518]
[1756073415890,1.0583,4782.5,4782.4,20.518]
[1756073416095,1.62144062,4782.5,4782.4,20.518]
[1756073416295,0.56314062,4782.5,4782.3,0.3063]
[1756073416495,1.62144062,4782.4,4782.3,0.3063]
[1756073416700,1.62144062,4782.4,4782.3,20.517]
[1756073416895,0.56314062,4782.4,4781.9,0.5058]
[1756073417101,0.7266,4782.1,4782.0,20.8223]
[1756073417302,0.7266,4782.1,4782.0,0.3063]
[1756073417492,1.0583,4782.1,4782.0,20.8223]
[1756073417697,0.3317,4782.0,4781.8,3.2078]
[1756073417898,0.7266,4781.9,4781.8,3.5141]
[1756073418201,0.7266,4781.9,4781.8,24.2286]
[1756073418798,4.56250651,4781.9,4781.1,3.2078]
[1756073419097,0.93451397,4781.8,4781.7,3.2078]
[1756073419294,0.93451397,4781.8,4781.7,21.0218]
[1756073419295,0.3721,4781.8,4781.7,21.0218]
[1756073419792,1.0583,4781.8,4781.7,20.516]
[1756073419992,1.0583,4781.8,4781.2,0.41833]
[1756073420198,0.3545,4781.5,4780.8,20.515]
[1756073420392,0.56169691,4781.4,4780.9,0.3063]
[1756073420598,3.2078,4781.6,4781.0,0.3063]
[1756073420905,0.56177212,4781.5,4781.0,0.3063]
[1756073421098,1.0583,4781.1,4781.0,0.3063]
[1756073421299,1.0583,4781.1,4781.0,20.517]
[1756073422004,0.7266,4781.4,4781.0,20.517]
[1756073422302,1.0583,4781.5,4781.1,20.516]
[1756073422502,3.2078,4781.6,4781.1,20.516]
[1756073422503,0.7266,4781.4,4781.1,20.516]
[1756073422804,3.2078,4781.6,4781.3,1.03162]
[1756073423003,3.2078,4781.6,4781.4,0.41831]
[1756073423199,3.2078,4781.6,4781.5,0.5058]
[1756073423400,3.5623,4781.6,4781.5,0.5058]
[1756073423601,3.9344,4781.6,4781.5,0.5058]
[1756073423805,0.3545,4782.0,4781.8,0.41828]
[1756073424000,3.5623,4782.2,4781.9,20.515]
[1756073424206,3.5623,4782.2,4782.1,0.5058]
[1756073424601,3.9344,4782.2,4782.1,0.5058]
[1756073425007,3.2078,4782.2,4781.9,20.515]
[1756073425204,0.6862,4781.9,4781.2,0.41833]
[1756073425399,0.7266,4781.8,4781.3,20.516]
[1756073425706,3.2078,4782.2,4781.3,20.516]
[1756073425999,1.0583,4782.1,4781.4,20.516]
[1756073426203,1.0583,4782.1,4781.5,0.3063]
[1756073426500,0.3545,4782.0,4781.5,0.3063]
[1756073426701,0.7038,4781.8,4781.6,0.3063]
[1756073426900,1.0583,4781.7,4781.6,0.3063]
[1756073427103,0.7266,4781.6,4781.5,0.3063]
[1756073427604,1.0528,4781.6,4781.5,0.5058]
[1756073427801,0.3262,4781.6,4781.4,20.516]
[1756073428002,1.117,4781.5,4781.4,0.3059]
[1756073428204,1.117,4781.5,4781.4,20.8209]
[1756073429298,1.117,4781.5,4781.4,0.3059]
[1756073429498,1.117,4782.1,4781.3,20.512]
[1756073429705,1.117,4781.4,4780.6,20.512]
[1756073429910,0.3851,4781.1,4780.6,20.8179]
[1756073430105,0.4057,4780.8,4780.2,0.2277]
[1756073430315,1.117,4780.6,4780.3,20.513]
[1756073430507,3.2078,4781.0,4780.3,20.8189]
[1756073430707,1.117,4780.9,4780.3,20.8189]
[1756073430905,0.3262,4780.9,4780.3,20.8189]
[1756073431106,3.2078,4781.0,4780.3,20.8189]
[1756073431503,1.117,4780.4,4780.3,0.3059]
[1756073431702,0.4057,4780.3,4780.0,20.511]
[1756073431903,1.117,4780.1,4779.8,23.7188]
[1756073432109,0.7113,4779.9,4779.8,23.7188]
[1756073432410,0.7113,4779.7,4779.6,30.106]
[1756073432613,1.117,4779.7,4779.6,50.616]
[1756073433216,0.7113,4779.6,4778.5,0.2258]
[1756073433511,0.4057,4779.5,4778.8,0.5319]
[1756073433806,0.4057,4779.5,4779.2,0.1329]
[1756073434007,0.4057,4779.4,4779.3,20.8171]
[1756073434204,0.7908,4779.4,4779.3,20.8171]
[1756073434405,1.117,4779.4,4779.3,20.8171]
[1756073434600,0.7908,4779.4,4779.3,20.8171]
[1756073434806,0.7908,4780.2,4779.6,0.3061]
[1756073435110,0.4057,4780.2,4779.7,0.2258]
[1756073435306,3.2078,4780.4,4779.7,0.2258]
[1756073435307,3.2078,4780.4,4780.1,0.41843]
[1756073435508,3.2078,4780.4,4779.7,3.2078]
[1756073435509,3.2078,4780.4,4780.3,0.6648]
[1756073435705,0.4057,4781.3,4780.3,3.8726]
[1756073436002,0.4057,4781.3,4780.5,0.3061]
[1756073436218,0.3851,4781.2,4780.5,0.3061]
[1756073436410,0.4057,4781.1,4780.5,0.3061]
[1756073436713,3.2078,4781.0,4779.7,3.75916]
[1756073436912,0.7113,4780.7,4779.9,0.3061]
[1756073437208,0.4057,4780.6,4779.9,0.3061]
[1756073437915,0.3851,4780.5,4779.9,0.3061]
[1756073438108,0.4057,4780.4,4779.9,0.3061]
[1756073438314,1.117,4780.2,4779.8,20.51]
[1756073438613,0.4057,4780.0,4779.9,0.2258]
[1756073438910,0.4057,4780.0,4779.9,3.4336]
[1756073439212,0.7908,4780.0,4779.9,20.509]
[1756073439414,0.4057,4780.0,4779.9,21.0409]
[1756073440215,0.7908,4780.0,4779.9,20.8151]
[1756073440805,0.7908,4780.0,4779.9,21.0409]
[1756073441407,1.117,4780.0,4779.9,20.8121]
[1756073442715,0.7908,4780.0,4779.9,21.0379]
[1756073443311,0.7908,4780.0,4779.9,0.5319]
[1756073443618,0.7908,4780.0,4779.3,33.3328]
[1756073443819,0.7908,4780.0,4779.4,20.8101]
[1756073444212,0.3851,4780.0,4779.6,0.2258]
[1756073444414,0.4057,4779.9,4779.6,0.1329]
[1756073444613,0.3851,4780.0,4779.8,0.5319]
[1756073444820,0.7113,4780.0,4779.9,0.3061]
[1756073445318,1.117,4780.0,4779.9,0.3061]
[1756073446311,0.4057,4779.8,4779.3,3.2078]
[1756073446510,0.4057,4779.7,4779.5,0.2258]
[1756073446716,0.4057,4779.7,4779.4,0.1329]
[1756073446717,0.4057,4779.7,4779.6,0.5319]
[1756073447220,0.7908,4779.7,4779.6,0.5319]
[1756073448519,0.4057,4779.6,4778.9,0.5319]
[1756073448720,0.75463228,4779.5,4778.8,3.2078]
[1756073448922,0.3851,4778.9,4778.4,20.5]
[1756073449122,3.2078,4779.6,4778.5,0.3061]
[1756073449322,0.3262,4778.7,4778.5,0.3061]
[1756073449624,1.117,4778.6,4778.5,0.3061]
[1756073450613,1.117,4779.5,4778.3,23.7028]
[1756073450817,3.2078,4779.1,4778.3,23.7028]
[1756073451019,3.2078,4779.1,4778.3,3.2078]
[1756073451220,1.117,4778.8,4778.3,3.2078]
[1756073451523,0.1686942,4780.3,4777.4,0.3061]
[1756073451524,0.7908,4778.5,4777.4,0.3061]
[1756073451727,0.3851,4777.8,4777.2,0.3061]
[1756073451919,0.4057,4777.7,4777.2,0.3061]
[1756073452122,0.4057,4777.5,4777.2,0.5319]
[1756073452425,1.117,4777.3,4776.8,20.8011]
[1756073452614,0.3262,4777.3,4776.8,20.495]
[1756073452818,0.82526733,4777.1,4777.0,0.5319]
[1756073453018,0.03446733,4777.1,4776.5,3.2078]
[1756073453222,0.4057,4776.9,4776.8,0.5319]
[1756073453521,0.7908,4776.9,4776.8,0.5319]
[1756073453723,0.44016733,4776.9,4776.8,0.5319]
[1756073453920,0.03446733,4776.9,4776.8,21.0249]
[1756073455122,0.03446733,4776.9,4776.8,21.1578]
[1756073455325,0.4057,4778.1,4776.8,24.493]
[1756073455527,0.4057,4778.1,4777.4,0.2258]
[1756073455722,3.9191,4778.3,4777.5,20.494]
[1756073455925,3.2078,4778.3,4778.0,0.6303]
[1756073456118,3.2078,4778.3,4778.2,0.5319]
[1756073456928,0.7908,4778.2,4778.1,20.7991]
[1756073457422,1.117,4778.2,4777.8,0.2258]
[1756073457626,3.2078,4778.3,4777.5,20.495]
[1756073457828,3.2078,4778.3,4777.4,0.3061]
[1756073457829,0.3956,4778.0,4777.4,20.8001]
[1756073458024,1.1216,4778.0,4777.4,20.8001]
[1756073458424,0.726,4778.0,4777.4,20.8001]
[1756073458618,0.3956,4777.9,4777.4,20.8001]
[1756073458819,0.334,4777.7,4777.5,0.306]
[1756073459029,3.2078,4778.3,4777.5,0.306]
[1756073459231,1.1216,4777.6,4777.5,0.306]
[1756073459432,1.1216,4777.4,4777.3,3.2078]
[1756073460930,1.1216,4777.4,4776.7,20.492]
[1756073461131,0.7296,4777.2,4776.7,20.492]
[1756073461335,0.7876,4776.9,4776.4,3.2078]
[1756073461529,0.59804702,4776.8,4776.6,0.0866]
[1756073461724,3.9338,4777.8,4776.5,1.02483]
[1756073461930,0.77671123,4777.7,4776.7,0.2135]
[1756073462231,3.2078,4777.3,4776.5,20.49]
[1756073462431,0.3956,4777.0,4776.4,3.2078]
[1756073462631,0.3956,4776.8,4776.1,0.306]
[1756073462935,0.3956,4776.5,4776.4,0.5195]
[1756073463131,0.3956,4776.5,4776.4,21.0095]
[1756073463329,0.3956,4777.0,4776.5,0.306]
[1756073463531,0.3956,4776.8,4776.7,0.5195]
[1756073463730,0.99817223,4776.8,4776.7,0.5195]
[1756073464133,0.392,4776.7,4776.5,0.5195]
[1756073464327,0.334,4777.1,4776.3,20.5746]
[1756073464533,0.60212776,4777.0,4776.4,0.5195]
[1756073464732,1.38972776,4776.9,4776.4,0.5195]
[1756073465033,3.2078,4777.3,4776.6,3.7273]
[1756073465034,0.726,4777.3,4776.6,3.7273]
[1756073465336,3.2078,4777.9,4777.1,0.5195]
[1756073465337,0.3956,4777.6,4777.1,0.5195]
[1756073465635,1.1216,4777.7,4777.3,0.306]
[1756073465934,0.7876,4777.5,4777.2,20.487]
[1756073466137,3.2078,4778.4,4776.9,0.306]
[1756073466339,1.1216,4778.2,4777.0,20.488]
[1756073466527,0.60229574,4778.1,4777.0,20.488]
[1756073466730,3.6034,4777.9,4776.9,0.306]
[1756073466927,0.7296,4777.3,4776.6,3.2078]
[1756073467133,1.1216,4776.9,4776.6,3.2078]
[1756073467432,1.1216,4776.7,4776.0,50.8435]
[1756073467632,1.1216,4776.7,4776.1,0.306]
[1756073468433,3.5998,4777.2,4776.3,0.3926]
[1756073468639,0.726,4777.0,4776.4,0.2135]
[1756073468833,0.3956,4776.9,4776.4,0.2135]
[1756073469032,1.1216,4776.7,4776.5,0.306]
[1756073469232,0.3956,4777.0,4776.6,3.62653]
[1756073469534,3.5998,4777.7,4777.1,0.306]
[1756073469742,0.392,4778.3,4777.6,3.2078]
[1756073469927,0.392,4778.3,4777.9,0.5195]
[1756073469928,0.3956,4778.2,4777.9,0.5195]
[1756073470133,0.3956,4778.1,4778.0,0.5195]
[1756073470330,0.3956,4778.4,4778.1,0.5195]
[1756073470533,0.3956,4778.4,4777.7,20.485]
[1756073470534,0.3956,4778.3,4778.2,0.5195]
[1756073470734,0.7876,4778.8,4778.2,3.4213]
[1756073470935,0.3956,4778.8,4778.7,3.7273]
[1756073471133,0.3956,4778.8,4778.7,24.2113]
[1756073471731,1.1216,4778.8,4778.0,20.483]
[1756073471939,3.2078,4779.5,4778.0,20.483]
[1756073472137,1.1216,4778.9,4777.5,0.5195]
[1756073472338,0.7296,4778.7,4777.5,0.306]
[1756073472536,1.40152754,4778.6,4778.0,0.306]
[1756073472839,0.392,4778.4,4778.2,0.2135]
[1756073473036,0.7876,4778.3,4778.2,0.5195]
[1756073473243,1.1216,4778.3,4778.2,0.306]
[1756073473439,3.2078,4779.0,4777.9,3.2078]
[1756073473739,0.3956,4778.8,4778.2,0.5195]
[1756073473931,1.1216,4778.1,4777.8,23.6878]
[1756073474241,0.3956,4778.5,4778.2,0.2135]
[1756073474436,0.3956,4778.4,4778.2,0.5195]
[1756073474644,0.7876,4778.3,4778.2,0.5195]
[1756073474835,0.3956,4779.6,4778.3,0.306]
[1756073475036,0.3956,4779.6,4779.0,0.306]
[1756073475235,0.3956,4779.6,4779.2,0.3926]
[1756073475443,0.3956,4779.5,4779.4,0.5195]
[1756073476839,3.2078,4781.0,4780.9,0.5195]
[1756073477142,1.48433372,4782.5,4780.9,0.5195]
[1756073477143,0.392,4782.0,4781.0,0.306]
[1756073477336,0.63449154,4781.9,4781.4,0.306]
[1756073477535,0.3956,4781.7,4781.6,0.2135]
[1756073477737,1.03009154,4781.7,4781.6,0.5195]
[1756073477938,0.3956,4781.7,4781.6,0.5195]
[1756073478138,3.2078,4782.1,4781.6,4.5195]
[1756073478344,0.334,4782.7,4781.8,3.2078]
[1756073478639,0.3956,4782.2,4782.1,0.5195]
[1756073480345,0.7296,4782.7,4782.1,0.5195]
[1756073481145,3.2078,4783.4,4782.1,0.5195]
[1756073481444,1.1216,4783.2,4782.1,0.306]
[1756073481640,1.1216,4783.1,4782.1,0.306]
[1756073481842,3.2078,4783.4,4782.1,0.306]
[1756073482042,1.1216,4782.8,4782.1,0.306]
[1756073482343,0.392,4782.7,4782.1,0.306]
[1756073482645,0.392,4782.4,4781.8,3.2078]
[1756073482842,0.726,4782.2,4781.8,3.5138]
[1756073483042,0.392,4783.1,4781.8,3.2078]
[1756073483237,1.1216,4783.3,4781.8,3.2078]
[1756073483443,0.726,4783.0,4781.8,3.2078]
[1756073483746,3.2078,4782.9,4781.8,3.2078]
[1756073483949,0.726,4782.7,4781.8,3.2078]
[1756073484143,1.1216,4782.6,4781.8,3.2078]
[1756073484342,3.2078,4782.9,4781.8,3.2078]
[1756073484536,0.392,4782.7,4781.8,3.2078]
[1756073484845,3.2078,4782.9,4781.8,3.2078]
[1756073485042,1.1216,4782.3,4781.8,3.2078]
[1756073485340,3.2078,4782.9,4781.8,3.2078]
[1756073485545,1.1216,4782.0,4781.8,3.2078]
[1756073485741,1.1216,4781.9,4781.8,3.2078]
[1756073487244,1.1216,4782.3,4781.3,3.2078]
[1756073487447,0.7876,4781.7,4781.0,0.41833]
[1756073487640,0.7876,4781.7,4781.1,0.306]
[1756073488146,0.3589,4781.6,4781.1,0.306]
[1756073488449,3.2078,4781.8,4781.1,0.306]
[1756073488649,0.3841,4781.3,4781.2,0.3057]
[1756073488850,0.7312,4781.3,4781.2,0.3057]
[1756073489043,0.7312,4781.3,4780.7,23.8671]
[1756073489044,0.7312,4781.3,4780.7,24.1728]
[1756073489251,0.3841,4781.1,4780.7,3.7128]
[1756073489451,0.3841,4781.5,4780.8,0.505]
[1756073489752,0.3589,4781.4,4780.9,0.505]
[1756073489952,0.3589,4781.2,4781.1,0.505]
[1756073490750,0.743,4781.2,4781.1,0.3057]
[1756073490949,3.2078,4781.8,4780.7,3.2078]
[1756073491151,0.3471,4781.7,4780.7,3.5135]
[1756073491360,0.3589,4781.5,4780.7,3.5135]
[1756073492359,0.706,4781.2,4780.7,0.3057]
[1756073492560,3.2078,4781.3,4779.9,0.5031]
[1756073492857,1.0901,4781.0,4779.9,0.5031]
[1756073493047,3.2078,4781.3,4779.9,0.5031]
[1756073493453,1.0901,4780.7,4779.9,0.5031]
[1756073493646,0.3589,4780.6,4779.9,0.5031]
[1756073494459,1.0901,4780.7,4779.8,20.457]
[1756073494653,0.706,4780.6,4779.7,3.2078]
[1756073494854,1.0901,4780.6,4779.7,3.2078]
[1756073495055,1.0901,4780.4,4779.7,3.2078]
[1756073495357,1.0901,4780.2,4779.5,0.3057]
[1756073495556,3.2078,4780.3,4779.0,3.2078]
[1756073495757,0.3471,4780.1,4779.1,0.3057]
[1756073495957,1.0901,4779.9,4779.1,0.3057]
[1756073496254,0.706,4779.6,4779.1,0.3057]
[1756073496460,1.0901,4779.5,4779.2,0.3057]
[1756073496658,1.0901,4779.6,4779.2,0.3057]
[1756073496863,0.3589,4779.1,4778.5,0.3057]
[1756073497160,0.3471,4778.9,4778.6,0.1974]
[1756073497459,0.743,4778.8,4778.7,0.3057]
[1756073497658,1.0901,4778.8,4778.7,0.3057]
[1756073498062,0.3589,4778.8,4778.7,0.5031]
[1756073498261,0.3841,4779.2,4778.7,0.5031]
[1756073498561,0.3841,4779.2,4778.2,0.071]
[1756073498562,0.3589,4779.0,4778.9,0.5031]
[1756073499658,0.7312,4779.0,4778.4,0.1974]
[1756073499858,3.2078,4779.8,4778.5,0.3057]
[1756073500058,0.3589,4779.4,4779.1,0.3057]
[1756073500260,3.2078,4779.8,4779.2,0.3057]
[1756073500261,0.743,4779.3,4779.2,0.3057]
[1756073500462,0.3841,4779.1,4778.7,0.1974]
[1756073500762,1.0901,4778.9,4778.7,0.1974]
[1756073500953,0.3471,4778.9,4778.8,0.3057]
[1756073501156,0.3471,4779.4,4778.8,0.5031]
[1756073501356,0.743,4779.3,4778.8,0.5031]
[1756073501558,3.2078,4779.8,4778.9,0.3057]
[1756073501863,3.2078,4779.8,4778.4,3.5135]
[1756073501864,1.0901,4779.6,4778.4,3.5135]
[1756073502161,3.2078,4779.3,4778.4,3.2078]
[1756073502364,0.743,4779.1,4778.4,3.2078]
[1756073502555,0.743,4779.1,4778.5,0.3057]
[1756073503056,0.3589,4779.6,4778.9,3.2078]
[1756073503257,0.3589,4779.6,4779.0,0.5741]
[1756073503567,0.3589,4780.2,4779.6,0.1974]
[1756073503866,0.706,4780.6,4779.9,0.3057]
[1756073504058,1.0901,4780.6,4779.9,0.3057]
[1756073504453,0.64382547,4780.5,4779.9,0.3057]
[1756073504659,1.0901,4780.6,4779.9,3.2078]
[1756073504874,0.3589,4780.6,4780.0,0.41842]
[1756073505061,3.2078,4780.9,4780.3,0.5031]
[1756073505255,3.2078,4780.4,4779.3,0.5031]
[1756073505454,0.3589,4780.2,4779.6,0.5031]
[1756073505660,0.3589,4780.0,4779.4,3.2078]
[1756073505865,0.3589,4780.3,4779.8,0.5031]
[1756073506059,0.3841,4780.0,4779.2,0.5031]
[1756073506259,0.3589,4779.9,4779.2,0.5031]
[1756073506661,0.706,4779.7,4779.2,0.3057]
[1756073506863,3.2078,4779.4,4778.7,0.3057]
[1756073507063,0.3471,4779.0,4778.3,3.4052]
[1756073507261,0.743,4778.9,4778.3,3.4052]
[1756073507467,0.3841,4778.9,4778.3,0.1974]
[1756073507654,0.3841,4778.9,4778.0,0.3057]
[1756073507655,0.743,4778.7,4778.0,0.3057]
[1756073507854,0.743,4778.6,4778.0,0.3057]
[1756073508060,0.7312,4778.6,4778.0,0.3057]
[1756073508260,3.2078,4778.3,4778.0,0.3057]
[1756073508460,0.706,4778.1,4778.0,0.3057]
[1756073509165,1.0901,4778.1,4778.0,0.3057]
[1756073509367,0.743,4778.1,4778.0,0.5031]
[1756073510366,0.3471,4778.0,4777.7,3.5135]
[1756073510566,1.0901,4777.9,4777.7,3.2078]
[1756073510768,1.0901,4778.2,4777.7,3.2078]
[1756073510969,0.3589,4778.1,4777.7,3.5135]
[1756073511168,3.2078,4778.3,4777.7,3.5135]
[1756073511466,0.17318169,4779.0,4776.9,3.2078]
[1756073511467,3.2078,4777.8,4776.9,3.2078]
[1756073511664,0.3471,4776.7,4775.0,3.5304]
[1756073511969,0.64265285,4777.7,4775.0,0.3226]
[1756073511970,1.0901,4775.3,4775.0,0.3226]
[1756073512166,3.2078,4775.4,4774.7,0.3645]
[1756073512366,0.21334365,4777.8,4774.5,0.3226]
[1756073512367,1.0901,4774.8,4774.5,0.3226]
[1756073512670,0.3589,4774.6,4774.5,0.3226]
[1756073512968,0.743,4774.6,4774.5,0.3226]
[1756073513764,4.2979,4775.4,4774.2,0.3645]
[1756073514072,0.3841,4776.3,4775.6,0.6871]
[1756073514265,0.3471,4776.6,4775.7,0.1974]
[1756073514469,1.85696813,4779.2,4775.6,0.6871]
[1756073514470,0.7312,4775.8,4775.6,0.3226]
[1756073514666,3.2078,4775.9,4775.6,0.3226]
[1756073514968,1.0901,4775.7,4775.6,0.3226]
[1756073515173,1.0901,4775.7,4774.8,3.62668]
[1756073515174,0.743,4775.6,4774.9,0.3226]
[1756073515367,0.3841,4775.2,4774.4,0.3226]
[1756073515670,0.743,4775.2,4774.4,0.3226]
[1756073516076,1.0901,4774.8,4774.2,0.1974]
[1756073516572,1.0901,4774.8,4774.1,0.09635223]
[1756073517073,0.7312,4774.8,4774.1,0.09635223]
[1756073517266,3.2078,4774.9,4774.1,0.09635223]
[1756073517565,3.2078,4774.2,4774.1,0.09635223]
[1756073517768,1.1112,4774.0,4772.4,3.2078]
[1756073517971,0.3288,4773.3,4772.4,3.2078]
[1756073518166,0.3288,4773.3,4772.2,0.3526]
[1756073518167,3.2078,4772.9,4772.2,0.3526]
[1756073518471,3.2078,4772.9,4772.2,20.8036]
[1756073519367,3.2078,4772.9,4772.0,0.2075]
[1756073519368,1.1112,4772.8,4772.0,0.2075]
[1756073519574,3.2078,4772.9,4772.4,0.749]
[1756073519770,0.3808,4773.2,4772.6,0.3964]
[1756073519964,0.4016,4773.2,4772.9,0.5601]
[1756073520162,0.3808,4773.1,4772.9,0.5601]
[1756073520369,3.2078,4773.5,4773.0,0.2075]
[1756073520570,1.03904676,4773.4,4773.0,0.2075]
[1756073520776,0.7824,4773.3,4773.2,0.3526]
[1756073520972,3.2078,4773.5,4773.0,20.456]
[1756073521172,1.1112,4773.1,4773.0,20.456]
[1756073521376,0.3288,4773.1,4772.7,0.3964]
[1756073521575,0.7824,4773.0,4772.8,0.3526]
[1756073521768,0.3288,4773.1,4772.8,0.3526]
[1756073521769,0.7824,4772.9,4772.8,0.3526]
[1756073521973,0.7824,4772.9,4772.8,20.8086]
[1756073522170,0.7824,4772.9,4772.8,0.3526]
[1756073522372,1.1112,4772.8,4772.5,20.456]
[1756073522567,0.7824,4772.6,4772.5,20.456]
[1756073522774,0.7824,4772.5,4772.2,0.3964]
[1756073522975,0.7824,4772.5,4772.3,0.2075]
[1756073523176,0.7824,4772.5,4772.4,0.5601]